{"text_format":"1","workbook":"xlsx","n_sheets":6,"sheets":["Menu Inicial","Fichamento de Texto","Fichamento Bibliográfico","Fichamento de Citação","Citações","Fichão"],"not_rendered":{"charts":0,"images":2,"macros":1,"external_links":0,"defined_names":4,"comments":0,"pivot_tables":0},"unopened":[],"bounds":{"document_bytes":16777216,"sheet_cells":100000,"rows_first":2000,"rows_last":500,"rows_between":2000,"halvings":0,"cell_chars":16384,"cell_head_chars":4096},"cells_cut":0,"cells_raw":0,"read":"whole","date_system":"1900"}

{"sheet":"Menu Inicial","index":0,"n_rows":14,"n_cols":4,"rows_kept":14,"cut":false,"hidden":false,"merged":[[10,3,10,8],[11,3,11,8],[12,3,12,8],[13,3,13,8],[6,2,6,8],[2,2,2,8],[4,3,4,8],[9,3,9,8],[7,3,7,8],[8,3,8,8]]}
[]
[]
[null,null,"PLANILHA DE PRODUÇÃO DE FICHAMENTO"]
[]
[null,null,"Assunto do Fichamento:","Como Fazer uma Tese em ciencias humanas"]
[]
[null,null,"Sobre a Obra"]
[null,null,"Nome do Autor","humberto"]
[null,null,"Sobrenome do Autor","eco"]
[null,null,"Título da Obra","Como se faz uma tese em Ciências Humanas"]
[null,null,"nº da Edição (apenas numero)",6]
[null,null,"Cidade","lisboa"]
[null,null,"Nome da Editora","Editorial Presença"]
[null,null,"Ano (AAAA)",1995]

{"sheet":"Fichamento de Texto","index":1,"n_rows":12,"n_cols":24,"rows_kept":12,"cut":false,"hidden":false,"merged":[[1,23,1,35],[7,3,10,63],[3,3,6,63],[11,3,37,63]]}
[]
[null,null,null,null,null,null,null,null,null,null,null,null,null,null,null,null,null,null,null,null,null,null,null,"Fichamento de Texto"]
[]
[null,null,null,{"$f":"\"Assunto: \"&PROPER('Menu Inicial'!D5)","v":"Assunto: Como Fazer Uma Tese Em Ciencias Humanas"}]
[]
[]
[]
[null,null,null,{"$f":"\"Fonte: \"&PROPER('Menu Inicial'!D8)&\", \"&UPPER('Menu Inicial'!D9)&\". \"&PROPER('Menu Inicial'!D10)&\". \"&'Menu Inicial'!D11&\". edição. \"&PROPER('Menu Inicial'!D12)&\": \"&PROPER('Menu Inicial'!D13)&\". \"&'Menu Inicial'!D14&\".\"","v":"Fonte: Humberto, ECO. Como Se Faz Uma Tese Em Ciências Humanas. 6. edição. Lisboa: Editorial Presença. 1995."}]
[]
[]
[]
[null,null,null,"Digite aqui o seu texto (para digitar em outra linha, pressione ALT + ENTER)\nFichamento de Texto\nEste tipo de fichamento é o mais solicitado por professores no mundo acadêmico, e por uma razão bem simples.\nEle é uma síntese das principais ideias contidas na obra, por isso é necessário que o aluno LEIA de forma crítica a obra a ser fichada e faça o fichamento usando suas próprias palavras.\nOu seja, não há como fazer um fichamento de texto sem esta leitura prévia da obra.\nEste tipo de fichamento possibilita a prática de uma boa redação, além do enriquecimento cultural do autor.\nComo Fazer um Fichamento de Texto\nComo já explicado acima, para fazer um fichamento de texto é necessário ler de forma crítica a obra a ser fichada.\nMinha recomendação é siga estes 3 passos:\n1. Leia o texto inteiro sem interrupções: \nVocê deve ler a obra inteira do início ao fim com bastante atenção para ter uma ideia geral do assunto abordado.\nNão se preocupe em fazer anotações, isto será feito na próxima etapa.\nUma ótima ideia é usar a Leitura Dinâmica neste momento. Se você não sabe como fazer, recomendo que treine estes dois exercícios para começar ainda hoje a ler mais rápido.\n2. Leia novamente, desta vez fazendo grifos e anotações\nApós esta leitura inicial, você deve voltar ao texto, desta vez destacando os pontos que considerar mais relevantes. Faça isso usando marca-texto, sublinhando, ou outra forma que facilite visualização futura deste trecho."]

{"sheet":"Fichamento Bibliográfico","index":2,"n_rows":12,"n_cols":24,"rows_kept":12,"cut":false,"hidden":false,"merged":[[1,23,1,35],[7,3,10,64],[3,3,6,64],[11,3,31,64]]}
[]
[null,null,null,null,null,null,null,null,null,null,null,null,null,null,null,null,null,null,null,null,null,null,null,"Fichamento Bibliográfico"]
[]
[null,null,null,{"$f":"\"Assunto: \"&PROPER('Menu Inicial'!D5)","v":"Assunto: Como Fazer Uma Tese Em Ciencias Humanas"}]
[]
[]
[]
[null,null,null,{"$f":"\"Fonte: \"&PROPER('Menu Inicial'!D8)&\", \"&UPPER('Menu Inicial'!D9)&\". \"&PROPER('Menu Inicial'!D10)&\". \"&'Menu Inicial'!D11&\". edição. \"&PROPER('Menu Inicial'!D12)&\": \"&PROPER('Menu Inicial'!D13)&\". \"&'Menu Inicial'!D14&\".\"","v":"Fonte: Humberto, ECO. Como Se Faz Uma Tese Em Ciências Humanas. 6. edição. Lisboa: Editorial Presença. 1995."}]
[]
[]
[]
[null,null,null,"Digite aqui o tema da obra e a visão do autor sobre o tema"]

{"sheet":"Fichamento de Citação","index":3,"n_rows":37,"n_cols":24,"rows_kept":37,"cut":false,"hidden":false,"merged":[[21,3,25,63],[26,3,30,63],[31,3,35,63],[36,3,40,63],[1,23,1,35],[7,3,10,63],[3,3,6,63],[11,3,15,63],[16,3,20,63]]}
[]
[null,null,null,null,null,null,null,null,null,null,null,null,null,null,null,null,null,null,null,null,null,null,null,"Fichamento de Citação"]
[]
[null,null,null,{"$f":"\"Assunto: \"&PROPER('Menu Inicial'!D5)","v":"Assunto: Como Fazer Uma Tese Em Ciencias Humanas"}]
[]
[]
[]
[null,null,null,{"$f":"\"Fonte: \"&PROPER('Menu Inicial'!D8)&\", \"&UPPER('Menu Inicial'!D9)&\". \"&PROPER('Menu Inicial'!D10)&\". \"&'Menu Inicial'!D11&\". edição. \"&PROPER('Menu Inicial'!D12)&\": \"&PROPER('Menu Inicial'!D13)&\". \"&'Menu Inicial'!D14&\".\"","v":"Fonte: Humberto, ECO. Como Se Faz Uma Tese Em Ciências Humanas. 6. edição. Lisboa: Editorial Presença. 1995."}]
[]
[]
[]
[null,null,null,{"$f":"\"\"\"\"&Citações!L9&\"\"\"\"&\" (p.\"&Citações!L17&\")\"","v":"\"Não existe uma norma única e rígida para as referências bibliográficas. São adotados (e combinados) diferentes sistemas, não tanto de país para país, mas, sobretudo, conforme os diferentes usos (uso acadêmico, uso para bibliotecas, usos legais, etc.), as áreas científicas (humanidades, engenharias, saúde, etc.), ou as normas de cada instituição.\" (p.43)"}]
[]
[]
[]
[]
[null,null,null,{"$f":"\"\"\"\"&Citações!L20&\"\"\"\"&\" (p.\"&Citações!L28&\")\"","v":"\"Nos países lusófonos, tem-se imposto o sistema descrito por Umberto Eco na sua obra Como se faz uma tese e adotado pela União Europeia (UE). No Brasil, a norma NBR 6023 da Associação Brasileira de Normas Técnicas (ABNT) é largamente usada. Em Portugal, a norma NP 405-1 do Instituto Português da Qualidade é pouco conhecida, sendo mais utilizada por organismos públicos. No meio acadêmico, cada autor goza de grande liberdade, desde que apresente um sistema coerente.\" (p.30)"}]
[]
[]
[]
[]
[null,null,null,{"$f":"\"\"\"\"&Citações!L31&\"\"\"\"&\" (p.\"&Citações!L39&\")\"","v":"\"As três normas referidas são muito semelhantes e não há diferenças relevantes entre a NP 405 e a NBR 6023. Contudo, enquanto a norma Umberto Eco/UE prevê apenas o uso de itálico para o título da obra, a NP 405 e a NBR 6023 possibilitam, em alternativa, o uso de negrito. Para além disso, a norma ABNT/NP separa os diferentes elementos com pontos, vírgulas e dois pontos, enquanto a Umberto Eco/UE recorre unicamente à vírgula. Existe, ainda, outra forma de uso, recomendada por Emanuel Araújo, que recorre a vírgulas e a pontos (dispensando os dois pontos).\" (p.27)"}]
[]
[]
[]
[]
[null,null,null,{"$f":"\"\"\"\"&Citações!L42&\"\"\"\"&\" (p.\"&Citações!L50&\")\"","v":"\"O título da obra referida deve ser sempre destacado com itálico (existe a possibilidade, pouco usada, de recorrer ao negrito). Se se tratar de um capítulo de uma obra ou artigo em publicação periódica, deve estar entre «aspas».\" (p.63)"}]
[]
[]
[]
[]
[null,null,null,{"$f":"\"\"\"\"&Citações!L53&\"\"\"\"&\" (p.\"&Citações!L60&\")\"","v":"\"Quando, após a citação de um texto, se apresenta a sua referência bibliográfica, ela deve ser apresentada ou em nota de rodapé (o que não é nada aconselhável se houver muitas notas) ou numa bibliografia no final da obra com uma breve chamada junto da citação. Estes sistemas estão pormenorizadamente descritos no artigo Citação.\" (p.90)"}]
[]
[]
[]
[]
[null,null,null,{"$f":"\"\"\"\"&Citações!L63&\"\"\"\"&\" (p.\"&Citações!L70&\")\"","v":"\"Referência bibliográfica é um conjunto de elementos de uma obra escrita (como título, autor, editora, local de publicação e outras) que permite a sua identificação.\nA um conjunto de referências bibliográficas, normalmente apresentadas no final de uma obra, dá-se o nome de \"referências bibliográficas\" ou apenas \"referências\".\" (p.131)"}]

{"sheet":"Citações","index":4,"n_rows":70,"n_cols":19,"rows_kept":70,"cut":false,"hidden":false,"merged":[[1,18,1,24],[69,5,70,10],[69,11,70,16],[52,5,58,10],[52,11,58,65],[59,5,60,10],[59,11,60,16],[62,5,68,10],[62,11,68,65],[38,5,39,10],[38,11,39,16],[41,5,48,10],[41,11,48,65],[49,5,50,10],[49,11,50,16],[30,5,37,10],[30,11,37,65],[8,5,15,10],[4,5,5,48],[8,11,15,65],[16,5,17,10],[16,11,17,16],[19,5,26,10],[19,11,26,65],[27,5,28,10],[27,11,28,16]]}
[]
[null,null,null,null,null,null,null,null,null,null,null,null,null,null,null,null,null,null,"Citações"]
[]
[]
[null,null,null,null,null,"Digite abaixo as citações exatamente como se encontram no livro, sem usar aspas"]
[]
[]
[]
[null,null,null,null,null,"Citação 1",null,null,null,null,null,"Não existe uma norma única e rígida para as referências bibliográficas. São adotados (e combinados) diferentes sistemas, não tanto de país para país, mas, sobretudo, conforme os diferentes usos (uso acadêmico, uso para bibliotecas, usos legais, etc.), as áreas científicas (humanidades, engenharias, saúde, etc.), ou as normas de cada instituição."]
[]
[]
[]
[]
[]
[]
[]
[null,null,null,null,null,"Página",null,null,null,null,null,43]
[]
[]
[null,null,null,null,null,"Citação 2",null,null,null,null,null,"Nos países lusófonos, tem-se imposto o sistema descrito por Umberto Eco na sua obra Como se faz uma tese e adotado pela União Europeia (UE). No Brasil, a norma NBR 6023 da Associação Brasileira de Normas Técnicas (ABNT) é largamente usada. Em Portugal, a norma NP 405-1 do Instituto Português da Qualidade é pouco conhecida, sendo mais utilizada por organismos públicos. No meio acadêmico, cada autor goza de grande liberdade, desde que apresente um sistema coerente."]
[]
[]
[]
[]
[]
[]
[]
[null,null,null,null,null,"Página",null,null,null,null,null,30]
[]
[]
[null,null,null,null,null,"Citação 3",null,null,null,null,null,"As três normas referidas são muito semelhantes e não há diferenças relevantes entre a NP 405 e a NBR 6023. Contudo, enquanto a norma Umberto Eco/UE prevê apenas o uso de itálico para o título da obra, a NP 405 e a NBR 6023 possibilitam, em alternativa, o uso de negrito. Para além disso, a norma ABNT/NP separa os diferentes elementos com pontos, vírgulas e dois pontos, enquanto a Umberto Eco/UE recorre unicamente à vírgula. Existe, ainda, outra forma de uso, recomendada por Emanuel Araújo, que recorre a vírgulas e a pontos (dispensando os dois pontos)."]
[]
[]
[]
[]
[]
[]
[]
[null,null,null,null,null,"Página",null,null,null,null,null,27]
[]
[]
[null,null,null,null,null,"Citação 4",null,null,null,null,null,"O título da obra referida deve ser sempre destacado com itálico (existe a possibilidade, pouco usada, de recorrer ao negrito). Se se tratar de um capítulo de uma obra ou artigo em publicação periódica, deve estar entre «aspas»."]
[]
[]
[]
[]
[]
[]
[]
[null,null,null,null,null,"Página",null,null,null,null,null,63]
[]
[]
[null,null,null,null,null,"Citação 5",null,null,null,null,null,"Quando, após a citação de um texto, se apresenta a sua referência bibliográfica, ela deve ser apresentada ou em nota de rodapé (o que não é nada aconselhável se houver muitas notas) ou numa bibliografia no final da obra com uma breve chamada junto da citação. Estes sistemas estão pormenorizadamente descritos no artigo Citação."]
[]
[]
[]
[]
[]
[]
[null,null,null,null,null,"Página",null,null,null,null,null,90]
[]
[]
[null,null,null,null,null,"Citação 6",null,null,null,null,null,"Referência bibliográfica é um conjunto de elementos de uma obra escrita (como título, autor, editora, local de publicação e outras) que permite a sua identificação.\nA um conjunto de referências bibliográficas, normalmente apresentadas no final de uma obra, dá-se o nome de \"referências bibliográficas\" ou apenas \"referências\"."]
[]
[]
[]
[]
[]
[]
[null,null,null,null,null,"Página",null,null,null,null,null,131]

{"sheet":"Fichão","index":5,"n_rows":41,"n_cols":24,"rows_kept":41,"cut":false,"hidden":false,"merged":[[36,3,38,63],[1,23,1,35],[39,3,39,63],[40,3,56,63],[21,3,23,63],[24,3,26,63],[27,3,29,63],[30,3,32,63],[33,3,35,63],[7,3,10,63],[3,3,6,63],[11,3,11,63],[12,3,19,63],[20,3,20,63]]}
[]
[null,null,null,null,null,null,null,null,null,null,null,null,null,null,null,null,null,null,null,null,null,null,null,"Fichamento Completo"]
[]
[null,null,null,{"$f":"\"Assunto: \"&PROPER('Menu Inicial'!D5)","v":"Assunto: Como Fazer Uma Tese Em Ciencias Humanas"}]
[]
[]
[]
[null,null,null,{"$f":"\"Fonte: \"&PROPER('Menu Inicial'!D8)&\", \"&UPPER('Menu Inicial'!D9)&\". \"&PROPER('Menu Inicial'!D10)&\". \"&'Menu Inicial'!D11&\". edição. \"&PROPER('Menu Inicial'!D12)&\": \"&PROPER('Menu Inicial'!D13)&\". \"&'Menu Inicial'!D14&\".\"","v":"Fonte: Humberto, ECO. Como Se Faz Uma Tese Em Ciências Humanas. 6. edição. Lisboa: Editorial Presença. 1995."}]
[]
[]
[]
[null,null,null,"Fichamento Bibliográfico"]
[null,null,null,{"$f":"'Fichamento Bibliográfico'!D12","v":"Digite aqui o tema da obra e a visão do autor sobre o tema"}]
[]
[]
[]
[]
[]
[]
[]
[null,null,null,"Fichamento de Citação"]
[null,null,null,{"$f":"\"\"\"\"&Citações!L9&\"\"\"\"&\" (p.\"&Citações!L17&\")\"","v":"\"Não existe uma norma única e rígida para as referências bibliográficas. São adotados (e combinados) diferentes sistemas, não tanto de país para país, mas, sobretudo, conforme os diferentes usos (uso acadêmico, uso para bibliotecas, usos legais, etc.), as áreas científicas (humanidades, engenharias, saúde, etc.), ou as normas de cada instituição.\" (p.43)"}]
[]
[]
[null,null,null,{"$f":"\"\"\"\"&Citações!L20&\"\"\"\"&\" (p.\"&Citações!L28&\")\"","v":"\"Nos países lusófonos, tem-se imposto o sistema descrito por Umberto Eco na sua obra Como se faz uma tese e adotado pela União Europeia (UE). No Brasil, a norma NBR 6023 da Associação Brasileira de Normas Técnicas (ABNT) é largamente usada. Em Portugal, a norma NP 405-1 do Instituto Português da Qualidade é pouco conhecida, sendo mais utilizada por organismos públicos. No meio acadêmico, cada autor goza de grande liberdade, desde que apresente um sistema coerente.\" (p.30)"}]
[]
[]
[null,null,null,{"$f":"\"\"\"\"&Citações!L31&\"\"\"\"&\" (p.\"&Citações!L39&\")\"","v":"\"As três normas referidas são muito semelhantes e não há diferenças relevantes entre a NP 405 e a NBR 6023. Contudo, enquanto a norma Umberto Eco/UE prevê apenas o uso de itálico para o título da obra, a NP 405 e a NBR 6023 possibilitam, em alternativa, o uso de negrito. Para além disso, a norma ABNT/NP separa os diferentes elementos com pontos, vírgulas e dois pontos, enquanto a Umberto Eco/UE recorre unicamente à vírgula. Existe, ainda, outra forma de uso, recomendada por Emanuel Araújo, que recorre a vírgulas e a pontos (dispensando os dois pontos).\" (p.27)"}]
[]
[]
[null,null,null,{"$f":"\"\"\"\"&Citações!L42&\"\"\"\"&\" (p.\"&Citações!L50&\")\"","v":"\"O título da obra referida deve ser sempre destacado com itálico (existe a possibilidade, pouco usada, de recorrer ao negrito). Se se tratar de um capítulo de uma obra ou artigo em publicação periódica, deve estar entre «aspas».\" (p.63)"}]
[]
[]
[null,null,null,{"$f":"\"\"\"\"&Citações!L53&\"\"\"\"&\" (p.\"&Citações!L60&\")\"","v":"\"Quando, após a citação de um texto, se apresenta a sua referência bibliográfica, ela deve ser apresentada ou em nota de rodapé (o que não é nada aconselhável se houver muitas notas) ou numa bibliografia no final da obra com uma breve chamada junto da citação. Estes sistemas estão pormenorizadamente descritos no artigo Citação.\" (p.90)"}]
[]
[]
[null,null,null,{"$f":"\"\"\"\"&Citações!L63&\"\"\"\"&\" (p.\"&Citações!L70&\")\"","v":"\"Referência bibliográfica é um conjunto de elementos de uma obra escrita (como título, autor, editora, local de publicação e outras) que permite a sua identificação.\nA um conjunto de referências bibliográficas, normalmente apresentadas no final de uma obra, dá-se o nome de \"referências bibliográficas\" ou apenas \"referências\".\" (p.131)"}]
[]
[]
[null,null,null,"Fichamento de Texto"]
[null,null,null,{"$f":"'Fichamento de Texto'!D12","v":"Digite aqui o seu texto (para digitar em outra linha, pressione ALT + ENTER)\nFichamento de Texto\nEste tipo de fichamento é o mais solicitado por professores no mundo acadêmico, e por uma razão bem simples.\nEle é uma síntese das principais ideias contidas na obra, por isso é necessário que o aluno LEIA de forma crítica a obra a ser fichada e faça o fichamento usando suas próprias palavras.\nOu seja, não há como fazer um fichamento de texto sem esta leitura prévia da obra.\nEste tipo de fichamento possibilita a prática de uma boa redação, além do enriquecimento cultural do autor.\nComo Fazer um Fichamento de Texto\nComo já explicado acima, para fazer um fichamento de texto é necessário ler de forma crítica a obra a ser fichada.\nMinha recomendação é siga estes 3 passos:\n1. Leia o texto inteiro sem interrupções: \nVocê deve ler a obra inteira do início ao fim com bastante atenção para ter uma ideia geral do assunto abordado.\nNão se preocupe em fazer anotações, isto será feito na próxima etapa.\nUma ótima ideia é usar a Leitura Dinâmica neste momento. Se você não sabe como fazer, recomendo que treine estes dois exercícios para começar ainda hoje a ler mais rápido.\n2. Leia novamente, desta vez fazendo grifos e anotações\nApós esta leitura inicial, você deve voltar ao texto, desta vez destacando os pontos que considerar mais relevantes. Faça isso usando marca-texto, sublinhando, ou outra forma que facilite visualização futura deste trecho."}]